bitfinex/quotes_ETHUSD_20241003
["timestamp","ask_amount","ask_price","bid_price","bid_amount"]
[1727919292346,4.17537,2395.0,2394.5,4.93632]
[1727919292744,4.98918,2395.1,2394.5,4.93632]
[1727919292970,4.17554,2394.9,2394.5,4.93632]
[1727919295965,4.98918,2395.1,2394.3,4.670607]
[1727919295966,0.8139,2395.1,2394.3,4.98264]
[1727919296164,4.17597,2394.7,2394.3,4.98276]
[1727919297153,8.35202,2394.7,2394.3,0.8062]
[1727919297593,4.17624,2394.5,2394.3,0.8062]
[1727919297795,4.17624,2394.5,2394.1,4.95243]
[1727919298294,4.17624,2394.5,2394.1,9.12927]
[1727919298496,4.17624,2394.5,2394.1,4.95234]
[1727919300074,4.17624,2394.5,2394.1,9.1292]
[1727919300457,4.99327,2394.7,2394.1,9.1292]
[1727919300660,4.17608,2394.6,2394.1,9.1292]
[1727919301194,4.17608,2394.6,2394.1,4.95234]
[1727919301784,4.17608,2394.6,2394.1,9.12918]
[1727919302199,4.17608,2394.6,2394.1,4.95234]
[1727919303718,4.99327,2394.7,2393.9,5.38971727]
[1727919303719,4.1765,2394.4,2393.9,5.8083555]
[1727919303867,3.53290049,2394.6,2393.9,0.7718]
[1727919304070,4.17683,2394.2,2393.7,5.8468555]
[1727919304273,4.17695,2394.1,2393.7,0.8099]
[1727919304522,4.17721,2394.0,2393.7,0.8099]
[1727919304804,4.17721,2394.0,2393.5,4.97234]
[1727919305486,8.35448,2394.0,2393.5,4.97234]
[1727919305814,8.35448,2394.0,2393.5,0.7945]
[1727919305815,4.17737,2393.9,2393.5,0.7945]
[1727919307069,4.17737,2393.9,2393.3,0.7953]
[1727919307070,0.8286,2393.9,2393.3,0.7953]
[1727919307311,3.53290049,2393.8,2393.1,0.7953]
[1727919307483,4.17788,2393.6,2393.1,4.97388]
[1727919308915,4.17818,2393.4,2392.8,4.17909]
[1727919309237,4.17852,2393.2,2392.9,0.774]
[1727919310636,8.35718,2393.2,2392.9,0.774]
[1727919310834,4.17829,2393.4,2392.9,0.774]
[1727919311038,4.1785,2393.2,2392.9,0.774]
[1727919312688,4.17902,2393.0,2392.7,0.7635]
[1727919312901,4.17902,2393.0,2392.3,0.7635]
[1727919312902,4.17935,2392.8,2392.3,0.7635]
[1727919313138,4.17946,2392.7,2392.3,0.7635]
[1727919313490,7.71225049,2392.8,2392.3,4.94349]
[1727919313723,4.96058,2392.7,2392.3,0.7635]
[1727919314234,3.53290049,2392.6,2391.8,4.18081]
[1727919314432,3.53290049,2392.6,2391.9,0.8207]
[1727919314433,4.18025,2392.2,2391.9,0.8207]
[1727919314899,0.7587,2392.3,2391.8,4.18092]
[1727919315089,4.17992,2392.4,2391.8,4.1808]
[1727919315291,4.17992,2392.4,2391.9,4.18069]
[1727919316127,8.35994,2392.4,2391.9,4.18069]
[1727919316348,4.17992,2392.4,2391.9,4.18069]
[1727919316992,8.35991,2392.4,2391.9,4.18069]
[1727919317698,4.1797,2392.6,2392.1,4.97199]
[1727919317937,12.37993,2392.8,2392.3,4.17999]
[1727919318243,9.14516,2393.0,2392.4,4.17987]
[1727919318411,4.17902,2392.9,2392.4,4.17987]
[1727919319211,4.17921,2392.8,2392.4,4.17987]
[1727919319704,4.17921,2392.8,2392.3,4.18007]
[1727919319902,4.17921,2392.8,2392.3,4.677261]
[1727919321183,4.17921,2392.8,2392.4,4.17988]
[1727919321890,4.17921,2392.8,2392.3,4.677261]
[1727919322379,8.35852,2392.8,2392.3,4.677261]
[1727919322591,4.17932,2392.8,2392.1,0.7917]
[1727919322781,4.17999,2392.4,2392.1,0.7917]
[1727919322944,8.359,2392.7,2392.1,4.97199]
[1727919323143,8.359,2392.7,2392.1,5.469189]
[1727919323375,0.7652,2392.5,2391.9,0.8043]
[1727919323588,4.18027,2392.2,2391.9,0.8043]
[1727919324905,4.18027,2392.2,2391.7,4.98542]
[1727919326373,4.18027,2392.2,2391.7,4.98534]
[1727919327109,4.18052,2392.1,2391.7,0.8043]
[1727919327402,7.71292049,2392.4,2391.7,4.9854]
[1727919327564,4.18008,2392.3,2391.8,4.18086]
[1727919328501,4.18044,2392.1,2391.7,0.8043]
[1727919328728,4.18062,2392.0,2391.7,0.8043]
[1727919329308,4.18062,2392.0,2391.5,4.96058]
[1727919330187,4.18062,2392.0,2391.5,8.36276]
[1727919330374,4.18138,2391.6,2391.1,0.7623]
[1727919330574,4.18172,2391.4,2391.1,0.7623]
[1727919330970,4.18114,2391.7,2391.0,0.08212086]
[1727919331195,4.18114,2391.7,2391.2,4.18198]
[1727919331373,4.18116,2391.7,2391.1,4.94935]
[1727919331577,4.18149,2391.5,2391.1,0.7672]
[1727919332115,0.09427608,2391.4,2391.1,0.7672]
[1727919332473,0.09427608,2391.4,2391.2,4.18199]
[1727919333009,4.18135,2391.6,2391.3,0.913132]
[1727919333221,4.18124,2391.7,2391.1,4.94933]
[1727919333222,4.18124,2391.7,2391.2,4.18188]
[1727919333511,4.2753754,2391.6,2391.1,4.94933]
[1727919333714,0.0940754,2391.6,2391.2,4.18199]
[1727919333884,4.2753954,2391.6,2391.2,0.913127]
[1727919334211,4.2753954,2391.6,2391.1,0.7672]
[1727919334212,0.0940754,2391.6,2391.1,5.02936076]
[1727919334396,4.2754654,2391.6,2391.1,5.02936076]
[1727919334603,4.18174,2391.4,2391.1,0.7672]
[1727919334807,4.27549201,2391.5,2391.1,0.7672]
[1727919334990,0.09371388,2391.3,2391.1,0.7672]
[1727919335173,4.18173,2391.4,2391.1,0.7672]
[1727919335705,4.27534353,2391.3,2390.9,0.7748]
[1727919336315,4.27534353,2391.3,2390.9,4.95729]
[1727919336480,4.27534353,2391.3,2390.9,0.7748]
[1727919336899,0.09351353,2391.3,2390.9,4.9572]
[1727919337103,0.09351353,2391.3,2390.9,6.58945]
[1727919337775,0.09351353,2391.3,2391.1,4.18208]
[1727919337976,8.36247,2391.7,2391.2,4.9457]
[1727919338286,4.18121,2391.7,2391.2,1.68480206]
[1727919338501,8.3625,2391.7,2391.2,5.86671206]
[1727919339212,4.1816,2391.5,2391.2,0.7637]
[1727919339727,4.18157,2391.5,2391.2,0.7637]
[1727919339875,8.36318,2391.5,2391.2,0.7637]
[1727919340201,4.18157,2391.5,2391.2,0.7637]
[1727919340383,8.36386,2391.3,2390.9,0.8064]
[1727919340588,4.18193,2391.3,2390.9,0.8064]
[1727919340784,4.18244,2391.0,2390.5,4.98961]
[1727919341174,4.18253,2390.9,2390.5,5.906865]
[1727919341928,0.7831,2391.0,2390.5,0.8064]
[1727919342229,0.7831,2391.0,2390.3,0.8247]
[1727919342386,4.18297,2390.7,2390.3,0.8247]
[1727919342592,4.18305,2390.6,2390.3,0.8247]
[1727919343002,4.18297,2390.7,2390.3,0.8247]
[1727919343744,4.18336,2390.5,2390.0,9.15455]
[1727919344292,4.18336,2390.5,2390.0,4.97055]
[1727919344540,4.18336,2390.5,2390.1,4.18391]
[1727919345026,4.18297,2390.7,2390.2,4.18367]
[1727919345336,4.18307,2390.6,2390.1,5.099216]
[1727919345538,4.18307,2390.6,2390.1,8.36761]
[1727919345687,4.18307,2390.6,2390.1,4.18377]
[1727919346333,4.18272,2390.8,2390.3,4.18349]
[1727919346545,4.18272,2390.8,2390.3,0.418349]
[1727919347430,4.18288,2390.7,2390.3,0.418349]
[1727919347641,4.18288,2390.7,2390.2,4.18359]
[1727919347932,4.18288,2390.7,2390.3,4.18356]
[1727919348088,4.18288,2390.7,2390.2,4.18359]
[1727919348293,0.09105384,2390.6,2390.2,4.18359]
[1727919348495,0.09105384,2390.6,2390.3,4.18348]
[1727919349636,0.09105384,2390.6,2390.2,4.73252851]
[1727919349841,0.09105384,2390.6,2390.2,4.680759]
[1727919350176,4.27411384,2390.6,2390.2,0.497019]
[1727919350330,4.27411384,2390.6,2390.2,4.75570632]
[1727919350648,4.27411384,2390.6,2390.2,4.680729]
[1727919351148,4.18331,2390.5,2390.0,4.97061]
[1727919351445,4.2743172,2390.5,2390.1,4.18391]
[1727919352725,0.0910072,2390.5,2390.3,0.8217]
[1727919352926,10.97290049,2391.1,2390.7,4.18286]
[1727919352927,7.44,2391.1,2390.7,4.18286]
[1727919353138,4.1822,2391.1,2390.7,0.8217]
[1727919353445,4.1822,2391.1,2390.2,4.18363]
[1727919353446,0.8177,2390.8,2390.2,0.7671]
[1727919353602,4.18306,2390.6,2390.2,0.7671]
[1727919353803,0.09108926,2390.7,2390.3,4.18349]
[1727919353996,5.00054,2390.8,2390.3,4.18349]
[1727919353997,0.09084615,2390.5,2390.3,4.18349]
[1727919354235,5.00054,2390.8,2390.3,4.18349]
[1727919354558,5.00054,2390.8,2390.3,5.096912]
[1727919354559,0.09081055,2390.4,2390.3,5.096912]
[1727919354703,4.18253,2390.9,2390.4,4.18324]
[1727919354902,0.09093127,2390.7,2390.4,4.24463138]
[1727919355146,0.09093152,2390.6,2390.4,5.25550972]
[1727919355309,0.09093152,2390.6,2390.5,4.96662]
[1727919355498,4.18236,2391.0,2390.5,0.7834]
[1727919355836,4.2736968,2390.9,2390.5,0.7834]
[1727919357118,4.1827,2390.8,2390.5,0.7834]
[1727919357502,0.09127009,2390.7,2390.5,0.7834]
[1727919357807,4.18236,2391.0,2390.5,0.7834]
[1727919357959,0.09124302,2390.6,2390.5,0.7834]
[1727919358116,4.18254,2390.9,2390.5,0.7834]
[1727919358117,4.18254,2390.9,2390.5,1.698394]
[1727919358465,4.27404236,2390.8,2390.5,1.698394]
[1727919358611,0.09131236,2390.8,2390.5,0.7834]
[1727919359964,4.18287,2390.7,2390.3,0.8271]
[1727919360140,4.27111114,2390.7,2390.3,0.8271]
[1727919360464,4.27111114,2390.7,2390.3,5.01066]
[1727919360465,0.08824114,2390.7,2390.3,5.01066]
[1727919360667,4.27121114,2390.7,2390.2,4.18365]
[1727919360846,4.18297,2390.7,2390.2,6.144672]
[1727919361031,0.08828353,2390.6,2390.2,6.144672]
[1727919361425,0.08828353,2390.6,2390.4,4.1833]
[1727919361625,4.18265,2390.9,2390.4,4.1833]
[1727919361829,4.18231,2391.1,2390.6,4.98437]
[1727919362066,8.2535,2391.3,2390.8,4.18268]
[1727919362376,4.9954,2391.3,2390.8,4.18268]
[1727919362528,4.9954,2391.3,2390.7,4.18286]
[1727919362529,4.18215,2391.2,2390.7,4.18286]
[1727919362732,4.18215,2391.2,2390.8,4.18267]
[1727919363153,0.08844782,2391.1,2390.7,4.73196264]
[1727919363328,0.08844782,2391.1,2390.8,4.18268]
[1727919363669,0.08844782,2391.1,2390.8,4.73601626]
[1727919363871,0.08844782,2391.1,2390.8,0.55333626]
[1727919364968,0.08844782,2391.1,2390.8,4.81960295]
[1727919365172,4.18183,2391.3,2390.8,4.81960295]
[1727919365373,4.18183,2391.3,2390.9,0.9002363]
[1727919365532,4.18183,2391.3,2390.8,4.81960181]
[1727919365875,0.08847579,2391.2,2390.8,4.81960181]
[1727919366166,4.18183,2391.3,2390.8,4.81960181]
[1727919366374,0.08844874,2391.1,2390.8,4.81960181]
[1727919366677,4.18183,2391.3,2390.8,4.81960181]
[1727919366825,0.08842168,2391.0,2390.8,4.81960181]
[1727919367031,4.18183,2391.3,2390.9,0.86216962]
[1727919368071,4.29170049,2391.5,2390.9,0.86216962]
[1727919368072,4.18143,2391.6,2391.0,0.8207]
[1727919368375,7.44,2391.7,2391.3,4.18181]
[1727919368579,4.18105,2391.8,2391.2,4.18197]
[1727919368726,4.18126,2391.7,2391.2,4.26560078]
[1727919368934,4.18126,2391.7,2391.3,4.1818]
[1727919369175,4.18126,2391.7,2391.4,0.8144]
[1727919369833,4.18126,2391.7,2391.1,1.4008602]
[1727919370066,4.18171,2391.4,2390.9,4.1825]
[1727919370367,4.18215,2391.2,2390.7,4.98884]
[1727919370582,0.8183,2391.5,2390.8,4.1826]
[1727919370583,4.18168,2391.4,2390.8,4.1826]
[1727919370747,4.18184,2391.3,2390.9,4.18252]
[1727919370942,4.18175,2391.4,2391.0,4.18234]
[1727919371742,4.18175,2391.4,2390.9,4.18252]
[1727919372261,4.18175,2391.4,2390.9,8.36496]
[1727919372432,4.18175,2391.4,2390.9,9.282056]
[1727919372629,9.18147,2391.5,2391.0,4.18232]
[1727919372830,9.18147,2391.5,2391.0,4.94132]
[1727919373165,4.18132,2391.6,2391.2,4.18199]
[1727919373363,4.18124,2391.7,2391.2,8.36389]
[1727919373538,4.18124,2391.7,2391.2,4.1819]
[1727919373737,8.36245,2391.7,2391.2,4.1819]
[1727919374454,4.18143,2391.6,2391.1,4.18215]
[1727919374779,0.7803,2391.8,2391.1,4.18215]
[1727919374780,0.7803,2391.8,2391.1,0.08363358]
[1727919374935,4.18114,2391.7,2391.2,4.1819]
[1727919375570,8.36239,2391.7,2391.2,4.1819]
[1727919375769,8.36239,2391.7,2391.1,0.26801816]
[1727919375770,4.1814,2391.6,2391.1,4.45017816]
[1727919375982,4.1814,2391.6,2391.1,4.18216]
[1727919376187,4.1814,2391.6,2391.0,4.94121]
[1727919376336,4.18114,2391.7,2391.2,4.18199]
[1727919376567,8.36241,2391.7,2391.2,4.18199]
[1727919377278,4.18131,2391.6,2391.2,4.18199]
[1727919378173,4.97147,2392.2,2391.7,4.18104]
[1727919378341,0.08034465,2391.5,2391.4,7.73163]
[1727919378690,0.7912,2392.4,2392.0,4.18044]
[1727919378836,0.8323,2392.7,2392.1,0.7948]
[1727919379035,0.07779749,2392.3,2391.9,4.95726]
[1727919379238,0.07779749,2392.3,2391.7,5.64723]
[1727919379471,0.7537,2392.2,2391.8,4.18093]
[1727919379673,0.7537,2392.2,2391.8,4.18086]
[1727919379875,0.07759171,2392.1,2391.8,4.18084]
[1727919380649,0.07759171,2392.1,2391.8,5.424574]
[1727919380975,4.17985,2392.5,2392.0,0.7731]
[1727919381151,4.17999,2392.4,2391.9,4.18065]
[1727919381886,4.17999,2392.4,2391.9,8.36134]
[1727919382039,4.17999,2392.4,2391.9,5.095064]
[1727919382240,4.17999,2392.4,2391.9,9.275754]
[1727919382478,4.17976,2392.5,2392.0,4.18049]
[1727919383176,4.17956,2392.6,2392.1,4.1804]
[1727919383382,4.17956,2392.6,2392.1,4.6898014]
[1727919383590,0.8276,2392.7,2392.1,0.5094814]
[1727919383881,0.8276,2392.7,2392.4,4.17976]
[1727919384376,0.8276,2392.7,2392.5,4.17964]
[1727919384583,0.8276,2392.7,2392.4,4.17976]
[1727919385078,0.8276,2392.7,2392.4,8.35957]
[1727919385241,0.8276,2392.7,2392.2,4.95703]
[1727919385447,5.00705,2392.7,2392.2,4.95703]
[1727919385653,5.00705,2392.7,2392.3,4.18004]
[1727919385952,4.17911,2392.9,2392.4,0.8291]
[1727919386290,7.44,2393.1,2392.4,0.8291]
[1727919386291,7.44,2393.1,2392.7,4.17925]
[1727919386579,7.44,2393.1,2392.8,4.17917]
[1727919386878,7.44,2393.1,2392.7,4.17935]
[1727919387643,7.71072049,2393.6,2392.8,0.8291]
[1727919387644,12.3862,2393.6,2392.8,0.8291]
[1727919387915,4.9462,2393.6,2393.2,4.17849]
[1727919388121,11.61757,2393.8,2393.2,4.17849]
[1727919388122,12.38587,2393.8,2393.4,4.17814]
[1727919388418,0.7683,2393.8,2393.4,8.35613]
[1727919388617,4.17772,2393.7,2393.2,5.00746]
[1727919388772,4.94577,2393.8,2393.2,5.86153905]
[1727919388977,9.12338,2393.8,2393.3,4.17832]
[1727919389190,9.12338,2393.8,2393.2,5.00746]
[1727919389399,9.12338,2393.8,2393.2,9.18588]
[1727919389593,4.94577,2393.8,2393.3,5.096908]
[1727919390114,9.12334,2393.8,2393.3,5.096908]
[1727919390624,4.17768,2393.7,2393.3,0.918588]
[1727919390775,4.94577,2393.8,2393.3,0.918588]
[1727919390976,9.12333,2393.8,2393.3,5.096898]
[1727919391182,4.17716,2394.0,2393.5,4.17784]
[1727919391408,4.1774,2393.9,2393.4,8.35621]
[1727919391827,8.1906,2394.1,2393.3,4.1783]
[1727919391828,8.35509,2393.8,2393.3,4.1783]
[1727919392188,4.17766,2393.7,2393.3,4.1783]
[1727919393128,4.17766,2393.7,2393.2,4.17849]
[1727919393129,0.785,2393.6,2393.2,4.17849]
[1727919393419,0.85872761,2393.6,2393.2,5.09498]
[1727919393993,0.85872761,2393.6,2393.2,9.27338]
[1727919394195,0.85872761,2393.6,2393.2,5.09489]
[1727919394383,5.03655761,2393.6,2393.1,4.17867]
[1727919394590,4.17841,2393.3,2392.8,4.99177]
[1727919394791,4.17841,2393.3,2392.8,9.17088]
[1727919395000,0.07360463,2393.2,2392.8,4.99177]
[1727919395190,4.17841,2393.3,2392.8,4.99177]
[1727919395406,0.07356911,2393.1,2392.8,4.99177]
[1727919395611,4.1781,2393.5,2392.8,1.311877]
[1727919395833,0.07350439,2393.0,2392.9,4.17885]
[1727919396145,4.17817,2393.4,2392.9,4.17885]
[1727919396343,0.07393015,2393.0,2392.9,4.17885]
[1727919396555,4.17817,2393.4,2392.9,4.17885]
[1727919396719,0.07391224,2393.0,2392.8,4.99183]
[1727919396921,4.17835,2393.3,2392.8,4.99183]
[1727919397453,0.07371976,2393.2,2392.8,4.99183]
[1727919397638,4.17835,2393.3,2392.8,5.90894]
[1727919397833,0.0739365,2393.1,2392.8,5.90894]
[1727919398055,4.17835,2393.3,2392.8,5.90894]
[1727919398212,0.07387687,2393.0,2392.8,5.90894]
[1727919398544,4.17835,2393.3,2392.8,5.90894]
[1727919398849,4.1781,2393.5,2392.8,5.90894]
[1727919399055,0.07371245,2393.2,2392.9,4.17898]
[1727919399344,4.1782,2393.4,2392.9,4.17898]
[1727919399545,0.07367692,2393.1,2392.9,4.17898]
[1727919399752,4.1782,2393.4,2392.9,4.17898]
[1727919400213,0.0737415,2393.3,2392.9,4.17898]
[1727919402249,4.2520815,2393.3,2392.8,4.99183]
[1727919402473,4.17882,2393.1,2392.6,0.7942]
[1727919402758,4.17882,2393.1,2392.4,3.53290049]
[1727919402759,4.17882,2393.1,2392.4,4.17976]
[1727919402974,0.07392335,2393.0,2392.6,4.17954]
[1727919403310,0.07392335,2393.0,2392.5,5.32910005]
[1727919403311,4.25283335,2393.0,2392.5,5.32910005]
[1727919403559,4.25283335,2393.0,2392.5,1.14939005]
[1727919403713,4.17906,2392.9,2392.5,1.14939005]
[1727919404051,4.25283335,2393.0,2392.6,4.17954]
[1727919404052,0.0735501,2392.8,2392.6,4.17954]
[1727919404255,8.35789,2393.0,2392.5,1.14939005]
[1727919404427,0.07351456,2392.7,2392.5,1.14939005]
[1727919404753,4.17904,2392.9,2392.5,1.14939005]
[1727919404926,0.07347903,2392.6,2392.5,1.14939005]
[1727919405458,4.17904,2392.9,2392.5,1.14939005]
[1727919405655,0.07347903,2392.6,2392.5,1.14939005]
[1727919405858,4.17904,2392.9,2392.5,5.32911005]
[1727919406044,0.07347903,2392.6,2392.5,5.32911005]
[1727919406228,4.17903,2392.9,2392.5,5.32911005]
[1727919406560,4.17876,2393.1,2392.6,5.130326]
[1727919406726,4.17876,2393.1,2392.6,9.309786]
[1727919407126,4.17876,2393.1,2392.6,5.130326]
[1727919407335,4.17876,2393.1,2392.6,9.309786]
[1727919408028,4.17929,2392.8,2392.3,0.8297]
[1727919408244,0.07355873,2393.0,2392.8,0.8297]
[1727919408558,4.96392,2393.2,2392.8,1.330607]
[1727919408748,0.07352664,2392.9,2392.8,1.330607]
[1727919408941,4.96392,2393.2,2392.8,1.330607]
[1727919409116,0.07381864,2392.9,2392.5,0.8297]
[1727919409313,4.17928,2392.8,2392.3,5.00975]
[1727919409516,4.17928,2392.8,2392.3,5.96402148]
[1727919409716,0.07368211,2392.7,2392.3,5.96402148]
[1727919409913,0.07368211,2392.7,2392.4,4.17977]
[1727919410139,0.7854,2393.2,2392.8,4.17909]
[1727919410344,0.7854,2393.2,2392.9,0.918815]
[1727919410549,0.7854,2393.2,2392.8,4.17909]
[1727919410967,4.96391,2393.2,2392.7,5.00906]
[1727919411535,4.96391,2393.2,2392.7,9.18831]
[1727919411766,4.96391,2393.2,2392.8,4.17918]
[1727919412415,4.96391,2393.2,2392.7,5.00895]
[1727919412617,4.96391,2393.2,2392.7,5.509845]
[1727919412873,4.17827,2393.4,2392.7,1.330595]
[1727919413053,4.17851,2393.2,2392.8,0.0835744]
[1727919413219,4.17835,2393.3,2392.8,4.2626844]
[1727919413651,4.17835,2393.3,2392.8,4.21764607]
[1727919413868,4.17852,2393.2,2392.8,0.99652386]
[1727919414021,4.17852,2393.2,2392.7,5.00891]
[1727919414245,4.17835,2393.3,2392.8,4.17917]
[1727919414672,4.17851,2393.2,2392.7,5.00891]
[1727919414848,8.35713,2393.2,2392.7,5.00891]
[1727919415062,8.35713,2393.2,2392.7,5.927759]
[1727919415259,4.1787,2393.1,2392.7,1.748549]
[1727919415666,4.1787,2393.1,2392.7,0.8297]
[1727919416097,4.1787,2393.1,2392.7,5.00906]
[1727919416293,4.1787,2393.1,2392.7,0.8297]
[1727919418375,4.1787,2393.1,2392.7,5.00905]
[1727919419101,4.17886,2393.0,2392.7,0.8297]
[1727919419394,4.94341,2393.2,2392.7,0.8297]
[1727919419395,4.17876,2393.1,2392.7,0.8297]
[1727919419691,4.17876,2393.1,2392.7,1.330615]
[1727919421087,4.17928,2392.8,2392.5,0.8133]
[1727919421265,4.17982,2392.5,2392.3,0.35389529]
[1727919421468,4.1799,2392.4,2392.2,0.8133]
[1727919421669,4.17954,2392.7,2392.2,0.55599825]
[1727919421881,4.17916,2392.9,2392.4,4.17973]
[1727919422088,4.17886,2393.0,2392.5,4.96271]
[1727919422294,4.17842,2393.3,2392.9,0.783]
[1727919422457,4.17842,2393.3,2392.9,5.458139]
[1727919422655,4.17842,2393.3,2392.9,1.279209]
[1727919423369,4.17842,2393.3,2392.9,5.458179]
[1727919423693,0.07374769,2393.2,2392.9,5.458179]
[1727919423898,0.07374769,2393.2,2392.9,1.279209]
[1727919424100,4.17842,2393.3,2392.9,1.279209]
[1727919424302,0.07383403,2393.1,2392.9,1.279209]
[1727919424460,4.17842,2393.3,2393.0,0.5458239]
[1727919424654,4.17856,2393.2,2392.9,0.783]
[1727919424859,4.25242954,2393.2,2392.9,0.783]
[1727919426098,0.07386954,2393.2,2392.9,0.783]
[1727919426254,0.07386954,2393.2,2393.0,0.496208]
[1727919426455,4.17817,2393.4,2393.0,0.496208]
[1727919426756,4.17836,2393.3,2393.0,0.496208]
[1727919426958,0.07392748,2393.2,2393.0,0.496208]
[1727919427195,4.17836,2393.3,2393.0,0.496208]
[1727919427393,0.07387517,2393.1,2393.0,0.496208]
[1727919427595,4.17836,2393.3,2393.0,0.496208]
[1727919427818,0.07387517,2393.1,2393.0,0.496208]
[1727919427975,4.17836,2393.3,2393.0,0.496208]
[1727919428169,0.07391068,2393.2,2392.9,0.783]
[1727919428508,4.17836,2393.3,2392.9,0.783]
[1727919428705,0.07387517,2393.1,2392.9,0.783]
[1727919429004,4.17741,2393.9,2393.1,0.8048]
[1727919429211,0.825,2394.1,2393.7,4.17753]
[1727919429509,7.44,2394.7,2393.7,4.17753]
[1727919429510,0.825,2394.6,2394.0,0.8314]
[1727919429806,4.17654,2394.4,2394.0,0.8314]
[1727919430005,4.17637,2394.5,2394.0,0.8314]
[1727919430159,0.825,2394.6,2394.0,1.74372678]
[1727919430362,4.17592,2394.7,2394.1,4.260287]
[1727919430558,4.17609,2394.6,2394.1,4.260287]
[1727919430800,8.35192,2394.7,2394.1,4.260287]
[1727919430955,4.17592,2394.7,2394.2,4.17674]
[1727919431398,4.17592,2394.7,2394.3,0.7887]
[1727919431770,4.17592,2394.7,2394.1,0.7887]
[1727919431974,8.35264,2394.5,2394.1,0.7887]
[1727919432189,3.53290049,2394.6,2393.7,0.7792]
[1727919432500,4.17755,2393.8,2393.4,0.7792]
[1727919432669,4.17763,2393.7,2393.4,0.7792]
[1727919433063,4.17741,2393.9,2393.4,1.27497]
[1727919433263,4.17741,2393.9,2393.4,0.7792]
[1727919433455,4.17747,2393.8,2393.4,0.7792]
[1727919433677,4.17741,2393.9,2393.4,0.7792]
[1727919434206,4.17749,2393.8,2393.4,0.7792]
[1727919435762,4.17789,2393.6,2393.1,4.96624]
[1727919436073,4.30390049,2394.0,2393.1,4.96624]
[1727919436074,4.30390049,2394.0,2393.1,7.20339505]
[1727919436392,0.771,2394.0,2393.1,7.20339505]
[1727919436709,4.17799,2393.5,2393.1,3.02474505]
[1727919437918,4.17799,2393.5,2393.1,7.20338505]
[1727919439640,0.07188288,2393.4,2393.1,7.20338505]
[1727919440448,4.25005288,2393.4,2393.1,0.7877]
[1727919440617,4.17876,2393.1,2392.5,5.0108]
[1727919440835,4.17876,2393.1,2392.5,0.8311]
[1727919440836,0.7662,2393.1,2392.5,0.8311]
[1727919441135,4.17914,2392.9,2392.5,0.8311]
[1727919441339,4.1793,2392.8,2392.2,4.94561]
[1727919441632,4.17949,2392.7,2392.2,4.94561]
[1727919441946,4.17949,2392.7,2392.2,0.7655]
[1727919441947,4.17973,2392.5,2392.2,0.7655]
[1727919442154,4.17999,2392.4,2391.9,5.00575]
[1727919442435,0.07122681,2392.4,2392.0,4.18045]
[1727919442632,8.35934,2392.6,2392.0,5.099106]
[1727919442792,0.07074316,2392.3,2392.1,4.18029]
[1727919442993,4.17966,2392.6,2392.1,4.680829]
[1727919443193,0.07091325,2392.5,2392.1,4.680829]
[1727919443607,4.25065325,2392.5,2392.1,0.500539]
[1727919444719,4.17991,2392.4,2391.9,0.8251]
[1727919445044,0.07074567,2392.3,2391.9,0.8251]
[1727919445244,0.07074567,2392.3,2391.9,5.00579]
[1727919445544,4.17974,2392.5,2392.0,0.503433]
[1727919446008,0.07062578,2392.4,2392.0,0.503433]
[1727919446199,0.07062578,2392.4,2392.0,4.74691927]
[1727919446426,4.17968,2392.6,2392.1,4.18038]
[1727919446710,0.07059025,2392.3,2392.1,5.15564993]
[1727919447018,4.17973,2392.5,2392.1,0.97526993]
[1727919447229,0.07056301,2392.2,2392.1,0.97526993]
[1727919447433,4.17973,2392.5,2392.1,0.97526993]
[1727919447632,0.07057152,2392.2,2392.1,0.97526993]
[1727919447813,4.17973,2392.5,2392.1,0.97526993]
[1727919448126,0.0705685,2392.2,2392.1,0.97526993]
[1727919448328,4.17973,2392.5,2392.1,0.97526993]
[1727919448545,0.07057195,2392.2,2392.1,0.97526993]
[1727919448723,4.18001,2392.4,2392.1,0.97526993]
[1727919448919,0.07057195,2392.2,2392.0,0.503433]
[1727919449105,4.17973,2392.5,2392.0,4.684003]
[1727919449307,8.35954,2392.5,2392.1,0.9773367]
[1727919450523,4.17973,2392.5,2392.1,0.9773367]
[1727919451453,8.35958,2392.5,2392.1,0.9773367]
[1727919453368,0.07064302,2392.4,2392.1,0.9773367]
[1727919454021,5.06058302,2392.4,2392.0,0.503433]
[1727919454226,4.18015,2392.3,2391.9,0.8251]
[1727919454454,4.2507299,2392.3,2391.9,1.743803]
[1727919455078,0.0705799,2392.3,2391.9,1.743803]
[1727919455358,0.7748,2392.7,2391.9,5.00574]
[1727919455568,0.07053057,2392.2,2391.9,5.00574]
[1727919455726,0.7748,2392.7,2391.9,5.00574]
[1727919456059,4.18,2392.4,2391.9,9.18641]
[1727919456360,4.17977,2392.5,2391.9,5.00574]
[1727919456546,0.07052473,2392.3,2392.0,4.18049]
[1727919456858,0.07049749,2392.2,2392.0,0.918623]
[1727919457067,4.18002,2392.4,2392.0,0.918623]
[1727919457271,0.07047046,2392.1,2392.0,5.099203]
[1727919457453,4.18002,2392.4,2392.0,5.099203]
[1727919457757,4.18002,2392.4,2392.1,1.0104943]
[1727919458852,4.18002,2392.4,2391.9,5.00574]
[1727919459167,4.18,2392.4,2391.9,5.00574]
[1727919459369,4.18,2392.4,2391.9,9.18644]
[1727919460441,4.18,2392.4,2391.9,5.00574]
[1727919462246,4.17999,2392.4,2391.9,5.00574]
[1727919462444,4.17999,2392.4,2391.9,5.932772]
[1727919463392,4.17999,2392.4,2392.0,4.18059]
[1727919463535,4.17991,2392.4,2392.0,4.18057]
[1727919464038,4.17991,2392.4,2391.9,1.752132]
[1727919464039,4.17991,2392.4,2391.9,5.932892]
[1727919464577,8.35991,2392.4,2391.9,5.932892]
[1727919465177,4.17991,2392.4,2391.9,5.932892]